fUST/lending_fUST_20240418
["ID","MTS","AMOUNT","RATE_DAILY","PERIOD"]
[322867506,1713432644105,-1860.838317,0.0002123,2]
[322867507,1713432644114,-1860.838317,0.0002123,2]
[322867508,1713432644124,-1860.838317,0.0002123,2]
[322867509,1713432644133,-601.57773286,0.00021293,2]
[322867510,1713432644142,-188.96976676,0.00021389,2]
[322867511,1713432644152,-168.98025584,0.00021389,2]
[322867512,1713432644161,-407.20372869,0.00021389,2]
[322867513,1713432644170,-500.0,0.00021389,2]
[322867514,1713432644179,-500.0,0.00021389,2]
[322867515,1713432644189,-500.0,0.00021389,2]
[322867516,1713432644198,-500.0,0.00021389,2]
[322867517,1713432644207,-500.0,0.00021389,2]
[322867518,1713432644216,-500.0,0.00021389,2]
[322867519,1713432644226,-500.0,0.00021389,2]
[322867520,1713432644235,-500.0,0.00021389,2]
[322867521,1713432644244,-500.0,0.00021389,2]
[322867522,1713432644254,-500.0,0.00021389,2]
[322867523,1713432644263,-500.0,0.00021389,2]
[322867524,1713432644272,-500.0,0.00021389,2]
[322867525,1713432644281,-500.0,0.00021389,2]
[322867526,1713432644292,-500.0,0.00021389,2]
[322867527,1713432644301,-500.0,0.00021389,2]
[322867528,1713432644310,-500.0,0.00021389,2]
[322867529,1713432644319,-500.0,0.00021389,2]
[322867530,1713432644328,-500.0,0.00021389,2]
[322867531,1713432644337,-500.0,0.00021389,2]
[322867532,1713432644346,-245.21631555,0.00021389,2]
[322867533,1713432644354,-250.60698078,0.0002139,2]
[322867534,1713432644364,-474.3090317,0.0002139,2]
[322867535,1713432644374,-501.08771909,0.0002139,2]
[322867536,1713432644383,-966.61445294,0.00021391,2]
[322867537,1713432644392,-59101.02010387,0.00021391,2]
[322867538,1713432644402,-333.71056553,0.00021393,2]
[322867539,1713432644411,-688.59429255,0.00021398,2]
[322867540,1713432644420,-406.49971412,0.00021398,2]
[322867541,1713432644429,-620.92625985,0.0002143,2]
[322867542,1713432644438,-965.62361684,0.00021434,2]
[322867543,1713432644447,-154.829687,0.00021498,2]
[322867544,1713432644456,-158.89146937,0.00022,2]
[322867545,1713432644465,-153.0,0.00022281,2]
[322867547,1713432644474,-153.0,0.00022381,2]
[322867548,1713432644483,-153.0,0.00022381,2]
[322867549,1713432644492,-153.0,0.00022381,2]
[322867550,1713432644501,-153.0,0.00022381,2]
[322867551,1713432644510,-153.0,0.00022381,2]
[322867552,1713432644519,-153.0,0.00022481,2]
[322867553,1713432644528,-620.04631299,0.00022502,2]
[322867554,1713432644541,-153.0,0.00022603,2]
[322867555,1713432644555,-243.31260589,0.00023,2]
[322867556,1713432644565,-153.0,0.00023081,2]
[322867557,1713432644574,-153.0,0.00023081,2]
[322867560,1713432644678,-153.0,0.00023081,2]
[322867561,1713432644688,-153.0,0.00023081,2]
[322867562,1713432644697,-290.8048727,0.00023081,2]
[322867563,1713432644707,-420.0,0.00023085,2]
[322867564,1713432644717,-905.59384099,0.000231,7]
[322867565,1713432644725,-153.0,0.00023103,2]
[322867566,1713432644735,-153.0,0.00023103,2]
[322867567,1713432644744,-153.0,0.00023103,2]
[322867568,1713432644753,-153.0,0.00023103,2]
[322867569,1713432644762,-153.0,0.00023203,2]
[322867570,1713432644771,-153.0,0.00023203,2]
[322867571,1713432644780,-153.0,0.00023203,2]
[322867572,1713432644791,-420.0,0.0002335,2]
[322867573,1713432644800,-19586.81285036,0.00023602,5]
[322867669,1713432663788,229.49430343,0.00020244,2]
[322867670,1713432668882,167.52971,0.00020298,2]
[322867671,1713432683408,-157.61140581,0.00021013,2]
[322867672,1713432683434,-563.98339128,0.00021013,2]
[322867673,1713432683459,-363.36567265,0.00021014,2]
[322867674,1713432683484,-154.86062544,0.00021014,2]
[322867675,1713432683508,-154.86062544,0.00021015,2]
[322867676,1713432683533,-521.03230042,0.00021015,2]
[322867677,1713432683559,-161.88052911,0.00021016,2]
[322867678,1713432683587,-300.0,0.00021229,2]
[322867679,1713432683612,-300.0,0.00021229,2]
[322867680,1713432683638,-3743.09479785,0.00021229,2]
[322867681,1713432683664,-1860.838317,0.0002123,2]
[322867682,1713432683690,-1860.838317,0.0002123,2]
[322867683,1713432683716,-1860.838317,0.0002123,2]
[322867684,1713432683759,-1860.838317,0.0002123,2]
[322867685,1713432683788,-1860.838317,0.0002123,2]
[322867686,1713432683818,-1860.838317,0.0002123,2]
[322867687,1713432683848,-1860.838317,0.0002123,2]
[322867688,1713432683875,-1860.838317,0.0002123,2]
[322867689,1713432683904,-1294.18184883,0.0002123,2]
[322867690,1713432693676,-237.9814523,0.00021013,2]
[322867691,1713432693701,-566.65646817,0.0002123,2]
[322867692,1713432693727,-1860.838317,0.0002123,2]
[322867693,1713432693752,-1860.838317,0.0002123,2]
[322867694,1713432693777,-1860.838317,0.0002123,2]
[322867695,1713432693803,-1860.838315,0.0002123,2]
[322867696,1713432693828,-154.86062544,0.00021389,2]
[322867697,1713432693854,-672.86942406,0.00021389,2]
[322867698,1713432693878,-500.0,0.0002139,2]
[322867699,1713432693903,-500.0,0.0002139,2]
[322867700,1713432693928,-482.08316671,0.0002139,2]
[322867701,1713432693952,-500.0,0.0002139,2]
[322867702,1713432693977,-500.0,0.0002139,2]
[322867703,1713432694004,-500.0,0.0002139,2]
[322867704,1713432694030,-530.19540196,0.0002139,2]
[322867705,1713432694055,-500.0,0.0002139,2]
[322867706,1713432694080,-500.0,0.0002139,2]
[322867707,1713432694107,-500.0,0.0002139,2]
[322867708,1713432694133,-341.90315676,0.0002139,2]
[322867709,1713432694267,-500.0,0.0002139,2]
[322867710,1713432694301,-500.0,0.0002139,2]
[322867711,1713432694328,-500.0,0.0002139,2]
[322867712,1713432694357,-500.0,0.0002139,2]
[322867713,1713432694384,-284.18050816,0.00022279,2]
[322867714,1713432694410,-200.0,0.0002228,2]
[322867715,1713432694437,-245.78461844,0.0002228,2]
[322867716,1713432694462,-153.0,0.00022281,2]
[322867717,1713432694487,-601.57773283,0.00022945,2]
[322867718,1713432694512,-420.0,0.00023087,2]
[322867719,1713432694539,-420.0,0.00023352,2]
[322867720,1713432694569,-413.18714964,0.00023602,5]
[322867721,1713432694596,-601.57773283,0.00024597,2]
[322867723,1713432750114,-199.22367418,0.0002219,5]
[322867724,1713432750140,-243.31260589,0.00023699,2]
[322867725,1713432750166,-970.0,0.000237,2]
[322867726,1713432750192,-156.87718177,0.00024592,2]
[322867727,1713432750218,-1876.27918073,0.00024593,2]
[322867728,1713432750243,-272.33447526,0.00024593,2]
[322867729,1713432750269,-361.68523886,0.00024594,2]
[322867730,1713432750295,-241.27133125,0.00024595,2]
[322867731,1713432750321,-468.01507081,0.00024595,2]
[322867732,1713432751216,965.62361684,0.00023698,2]
[322867733,1713432764673,-525.85280241,0.00022188,2]
[322867734,1713432764702,-241.27133125,0.00022189,2]
[322867735,1713432764729,-938.10485442,0.00022189,2]
[322867736,1713432764756,-154.86062544,0.00023697,2]
[322867737,1713432764783,-158.89146937,0.00023698,2]
[322867738,1713432764809,-161.88052911,0.00023698,2]
[322867739,1713432768890,193.4238413,0.00022188,2]
[322867789,1713433837939,-193.4238413,0.00021448,2]
[322867790,1713433837948,-272.33447526,0.00021449,2]
[322867791,1713433837958,-521.11578243,0.0002145,2]
[322867792,1713433837969,-189.00549416,0.0002145,2]
[322867793,1713433837978,-161.88052911,0.00021451,2]
[322867794,1713433837988,-525.85280241,0.00021452,2]
[322867795,1713433837998,-797.80148791,0.00021502,2]
[322867796,1713433838008,-917.6184353,0.00022089,2]
[322867797,1713433838019,-165.938512,0.00022478,2]
[322867798,1713433838028,-300.0,0.00022614,2]
[322867799,1713433838037,-300.0,0.00022614,2]
[322867800,1713433838046,-7342.9864779,0.00022615,2]
[322867801,1713433838055,-379.175248,0.00022639,2]
[322867802,1713433838064,-243.31260589,0.00023,2]
[322867803,1713433838073,-587.0,0.000239,2]
[322867804,1713433838082,-950.0,0.000245,2]
[322867805,1713433838091,-413.60872989,0.00024554,2]
[322867806,1713433838100,-165.30043782,0.00024556,2]
[322867807,1713433838109,-2000.0,0.00024558,2]
[322867808,1713433838118,-420.0,0.00024558,2]
[322867809,1713433838127,-232.22195338,0.00024656,2]
[322867810,1713433838137,-277.60171443,0.00024656,2]
[322867811,1713433838146,-687.6463722,0.00024656,2]
[322867812,1713433838155,-280.39989321,0.00024656,2]
[322867813,1713433838165,-232.98538348,0.00024656,2]
[322867814,1713433838174,-521.58766927,0.00024656,2]
[322867815,1713433838183,-2272.27856501,0.00024656,2]
[322867816,1713433838192,-157.4992408,0.00024656,2]
[322867817,1713433838201,-354.39971412,0.00024656,2]
[322867818,1713433838210,-155.67071799,0.00024656,2]
[322867819,1713433838218,-217.02542461,0.00024656,2]
[322867820,1713433838227,-237.86836684,0.00024656,2]
[322867821,1713433838237,-156.07369654,0.00024656,2]
[322867822,1713433838247,-231.68966445,0.00024656,2]
[322867823,1713433838256,-361.60536711,0.00024656,2]
[322867824,1713433838265,-885.8863923,0.00024656,2]
[322867825,1713433838274,-937.19103165,0.00024656,2]
[322867826,1713433838284,-159.28650757,0.00024656,2]
[322867827,1713433838293,-370.20981996,0.00024656,2]
[322867828,1713433838302,-752.28805462,0.00024657,2]
[322867829,1713433838311,-200.0,0.00024658,15]
[322867830,1713433838320,-200.0,0.00024658,2]
[322867831,1713433838329,-22322.69405271,0.00024658,10]
[322867843,1713433841161,-394.37627338,0.00024658,10]
[322867874,1713433846229,-1227.21428899,0.00024658,10]
[322867903,1713434060734,1734.71378982,0.000125,2]
[322867919,1713434422064,477.0,0.0002332,18]
[322867924,1713434747341,10000.0,0.00025,30]
[322867925,1713434754171,930.68876428,0.00020898,2]
[322867928,1713434946476,1798.38,0.00027699,120]
[322867957,1713435032018,-602.74968351,0.00021885,2]
[322867958,1713435032028,-265.1837901,0.00021885,2]
[322868150,1713435115968,4425.54678746,0.00027699,120]
[322868154,1713435146196,10555.8238774,0.00020964,2]
[322868156,1713435152217,899.19,0.00027699,120]
[322868158,1713435190398,449.59,0.00027699,120]
[322868159,1713435195186,167.392071,0.00020673,2]
[322868160,1713435226941,486.959111,0.00020947,2]
[322868161,1713435234633,449.59,0.00027699,120]
[322868170,1713435453602,250.0,0.00020954,2]
[322868179,1713435621803,9688.5323342,0.00020837,2]
[322868190,1713435678094,766.94401523,0.00019798,2]
[322868196,1713435754982,243.479555,0.00020948,2]
[322868200,1713435921588,2950.90690521,0.00021023,2]
[322868206,1713435976866,168.923582,0.00020685,2]
[322868209,1713436086241,7891.3291194,0.00020964,2]
[322868218,1713436229075,243.479555,0.00020833,2]
[322868395,1713436240315,-205.8725987,0.00021111,2]
[322868397,1713436240324,-272.33447526,0.00021112,2]
[322868399,1713436240333,-1083.45857318,0.00021116,2]
[322868465,1713436256188,1310.36081625,0.00020964,2]
[322868466,1713436256234,392.0,0.000209,2]
[322868467,1713436301821,1462.06548109,0.00018923,2]
[322868476,1713436587436,167.52971,0.000207,2]
[322868477,1713436603265,974.71032073,0.00018923,2]
[322868483,1713436904767,649.80688048,0.00019011,2]
[322868485,1713437046443,155.01006031,0.00019,2]
[322868486,1713437081523,309.4430026,0.00019,2]
[322868487,1713437103532,156.14991407,0.00019,2]
[322868488,1713437106454,926.83408172,0.00020898,2]
[322868489,1713437107124,82.31960731,0.00020685,2]
[322868490,1713437107149,85.07246369,0.00020685,2]
[322868498,1713437110278,199.22367418,0.00019798,2]
[322868536,1713437122215,420.82752681,0.0002,5]
[322868541,1713437135801,934.59324356,0.0002769,120]
[322868566,1713437440499,-617.4212,0.00021111,2]
[322868640,1713437446567,-388.71,0.0002111,2]
[322868651,1713437661148,1190.59729293,0.000125,2]
[322868652,1713437674222,183.66990749,0.000191,2]
[322868657,1713437813265,200.7523029,0.00020257,2]
[322868658,1713438110625,789.78313925,0.00019011,2]
[322868660,1713438199989,168.923582,0.0001982,2]
[322868661,1713438316887,-1960.0,0.00021007,2]
[322868662,1713438316935,-40.0,0.00021007,2]
[322868665,1713438411873,526.52209283,0.00018907,2]
[322868666,1713438440707,-1960.0,0.00021007,2]
[322868667,1713438440808,-40.0,0.00021007,2]
[322868670,1713438583274,-1960.0,0.00021007,2]
[322868671,1713438583369,-40.0,0.00021007,2]
[322868687,1713438632683,-272.33447526,0.00021023,2]
[322868690,1713438632692,-193.4238413,0.00021023,2]
[322868691,1713438632701,-241.27133125,0.00021024,2]
[322868693,1713438632710,-539.33485358,0.00021024,2]
[322868695,1713438632719,-468.01507081,0.00021024,2]
[322868697,1713438632728,-161.88052911,0.00021024,2]
[322868699,1713438632737,-2585.4644162,0.00021024,2]
[322868701,1713438632747,-1310.4510807,0.00021025,2]
[322868703,1713438632757,-300.0,0.00021026,2]
[322868705,1713438632766,-300.0,0.00021026,2]
[322868707,1713438632776,-151.0,0.00021034,2]
[322868709,1713438632785,-151.0,0.00021039,2]
[322868711,1713438632794,-151.0,0.00021041,2]
[322868713,1713438632803,-151.0,0.00021041,2]
[322868715,1713438632812,-227.832689,0.00021041,2]
[322868717,1713438632821,-151.0,0.00021041,2]
[322868719,1713438632830,-151.0,0.00021041,2]
[322868721,1713438632840,-1209.544906,0.00021048,2]
[322868723,1713438632848,-151.0,0.00021048,2]
[322868725,1713438632857,-151.0,0.00021048,2]
[322868727,1713438632866,-1209.544906,0.00021049,2]
[322868728,1713438632875,-292.377075,0.00021049,2]
[322868729,1713438632885,-151.0,0.00021056,2]
[322868730,1713438632894,-1209.544906,0.00021071,2]
[322868732,1713438632903,-856.40629429,0.00021071,2]
[322868754,1713438638681,-623.73196049,0.00021106,2]
[322868819,1713438643869,-985.292855,0.00021027,2]
[322868821,1713438643878,-985.292855,0.00021027,2]
[322868823,1713438643887,-985.292855,0.00021041,2]
[322868825,1713438643896,-985.292855,0.00021041,2]
[322868827,1713438643905,-985.292855,0.00021041,2]
[322868829,1713438643914,-985.292855,0.00021041,2]
[322868831,1713438643923,-985.292855,0.00021048,2]
[322868833,1713438643933,-985.292855,0.00021048,2]
[322868835,1713438643942,-985.292855,0.00021048,2]
[322868837,1713438643951,-985.292855,0.00021048,2]
[322868839,1713438643960,-985.292855,0.00021049,2]
[322868842,1713438643969,-985.292855,0.00021049,2]
[322868845,1713438643978,-704.05574004,0.00021071,2]
[322868963,1713438712998,351.01472856,0.00018971,2]
[322868964,1713438722538,-1960.0,0.00021007,2]
[322868965,1713438722631,-40.0,0.00021007,2]
[322868966,1713438740419,19916.7010652,0.00020065,2]
[322868967,1713438754973,3002.4982096,0.00020928,2]
[322868969,1713438877249,175.448289,0.00020079,2]
[322868971,1713439014309,234.00981904,0.00018949,2]
[322868977,1713439102573,-276.65799146,0.00021006,2]
[322868978,1713439102696,-5.64608146,0.00021006,2]
[322868979,1713439235501,1819.74,0.00027699,120]
[322868980,1713439306593,167.392071,0.00020252,2]
[322868982,1713439315589,156.00654602,0.00018949,2]
[322868987,1713439435950,175.448289,0.00020791,2]
[322868989,1713439464685,284.97852371,0.00018949,2]
[322868990,1713439468884,154.87609912,0.00018949,2]
[322868992,1713439533046,845.37275653,0.00020898,2]
[322868994,1713439571701,262.727025,0.00020921,2]
[322868997,1713439616504,-458.65476939,0.00021011,2]
[322868998,1713439616618,-9.36030142,0.00021011,2]
[322868999,1713439616764,150.0,0.00018907,2]
[322869000,1713439620986,-294.0,0.00021011,2]
[322869001,1713439621210,-6.0,0.00021011,2]
[322869002,1713439621398,288.0,0.00021011,2]
[322869003,1713439628311,-12.0,0.00021011,2]
[322869004,1713439628339,-659.17203558,0.00021011,2]
[322869005,1713439628417,-13.69738848,0.00021011,2]
[322869006,1713439630096,521.11578243,0.00021011,2]
[322869007,1713439648242,-392.0,0.00021011,2]
[322869008,1713439648353,-8.0,0.00021011,2]
[322869011,1713439680966,-294.0,0.00021011,2]
[322869012,1713439681076,-6.0,0.00021011,2]
[322869013,1713439681405,288.0,0.00021011,2]
[322869014,1713439690062,247.01606377,0.00020912,2]
[322869016,1713439718628,-12.0,0.00021011,2]
[322869017,1713439718654,-659.17203558,0.00021011,2]
[322869018,1713439718720,-13.69738848,0.00021011,2]
[322869020,1713439740760,-294.0,0.00021011,2]
[322869021,1713439740866,-6.0,0.00021011,2]
[322869022,1713439742216,288.0,0.00021011,2]
[322869023,1713439742428,-12.0,0.00021011,2]
[322869036,1713439801102,-294.0,0.00021011,2]
[322869037,1713439801182,-6.0,0.00021011,2]
[322869038,1713439801516,288.0,0.00021011,2]
[322869039,1713439801542,12.0,0.00021011,2]
[322869101,1713439831911,-161.88052911,0.00021011,2]
[322869103,1713439831920,-7654.92293381,0.00021012,2]
[322869156,1713439832670,-5474.18831644,0.00021011,2]
[322869157,1713439832784,-111.71812891,0.00021011,2]
[322869191,1713439837883,-2001.25080055,0.00021012,2]
[322869223,1713439841271,-1867.38441792,0.00021012,2]
[322869252,1713439843203,-2707.72019169,0.00021012,2]
[322869265,1713439847263,-17037.06664903,0.00021012,2]
[322869266,1713439847273,-2184.33,0.00021019,2]
[322869267,1713439847282,-158.00548651,0.00021666,2]
[322869268,1713439847291,-796.37593575,0.00021799,2]
[322869269,1713439847300,-642.72859117,0.000218,2]
[322869270,1713439847312,-307.27140883,0.000218,2]
[322869272,1713439847321,-130.47160829,0.0002189,2]
[322869307,1713439918101,150.0,0.00018919,2]
[322869352,1713440523077,-200.0,0.00024658,15]
[322869353,1713440556044,200.0,0.00024658,15]
[322869368,1713440800766,4000.0,0.00024657,30]
[322869377,1713440955408,506.20145332,0.00021,7]
[322869642,1713441260495,6017.18664089,0.0002,2]
[322869643,1713441261126,3973.70151652,0.000125,2]
[322869644,1713441270586,793.25322316,0.000176,2]
[322869646,1713441275616,272.95087799,0.0001,2]
[322869647,1713441279431,7359.38575588,0.00018,2]
[322869648,1713441280101,6433.52198556,0.00021,2]
[322869649,1713441280125,2476.05099914,0.00021,2]
[322869650,1713441282201,2544.95336716,0.0002,2]
[322869654,1713441422912,-408.51015166,0.00021784,2]
[322869655,1713441422940,-502.02258726,0.00021785,2]
[322869656,1713441423123,-203.64379404,0.00021785,2]
[322869657,1713441423151,-6330.16332014,0.00021799,2]
[322869658,1713441423178,-950.0,0.000218,2]
[322869659,1713441423208,-197.35320411,0.0002189,2]
[322869660,1713441423238,-417.0,0.00021994,2]
[322869661,1713441423267,-300.0,0.00021995,2]
[322869662,1713441423297,-300.0,0.00021995,2]
[322869663,1713441423323,-206.23729899,0.00021998,2]
[322869664,1713441423351,-242.38404753,0.00021998,2]
[322869665,1713441423383,-965.62361684,0.00021998,2]
[322869666,1713441423410,-200.0,0.00021998,2]
[322869667,1713441423439,-157.61140581,0.00021998,2]
[322869668,1713441423467,-361.68523886,0.00021998,2]
[322869669,1713441423496,-563.98339128,0.00021998,2]
[322869670,1713441423525,-1876.27918073,0.00021998,2]
[322869671,1713441423552,-3743.09479785,0.00021998,2]
[322869672,1713441423578,-156.87718177,0.00021998,2]
[322869673,1713441423605,-521.03230042,0.00021998,2]
[322869674,1713441423633,-363.36567265,0.00021998,2]
[322869675,1713441423660,-237.9814523,0.00021998,2]
[322869676,1713441423688,-284.18050816,0.00021998,2]
[322869677,1713441423717,-688.76379086,0.00021998,2]
[322869678,1713441423743,-938.10485442,0.00021998,2]
[322869679,1713441423770,-154.86062544,0.00021998,2]
[322869680,1713441423797,-154.86062544,0.00021998,2]
[322869681,1713441423825,-815.95691786,0.00021998,2]
[322869682,1713441423853,-790.09073609,0.00021998,2]
[322869683,1713441423879,-241.27133125,0.00021998,2]
[322869684,1713441423905,-1079.37919357,0.00021998,2]
[322869685,1713441423933,-545.69121745,0.00021998,2]
[322869686,1713441423961,-205.0862107,0.00021998,2]
[322869687,1713441423987,-194.57858022,0.00021998,2]
[322869688,1713441424015,-245.16497917,0.00021998,2]
[322869689,1713441424043,-467.74734708,0.00021998,2]
[322869690,1713441424071,-503.76165047,0.00021998,2]
[322869691,1713441424098,-400.0,0.00021998,2]
[322869692,1713441424126,-208.00412734,0.00021998,2]
[322869693,1713441424152,-272.91877214,0.00021998,2]
[322869694,1713441424180,-4858.2346593,0.00021998,2]
[322869695,1713441424208,-202.882444,0.00021998,2]
[322869696,1713441424323,-151.0,0.00021998,2]
[322869697,1713441424352,-163.391766,0.00021998,2]
[322869698,1713441424382,-151.0,0.00021998,2]
[322869699,1713441424409,-151.0,0.00021998,2]
[322869700,1713441424439,-151.0,0.00021998,2]
[322869701,1713441424468,-151.0,0.00021998,2]
[322869702,1713441424495,-153.196953,0.00021998,2]
[322869703,1713441424521,-193.350854,0.00021998,2]
[322869704,1713441424550,-151.0,0.00021998,2]
[322869705,1713441424577,-151.0,0.00021998,2]
[322869706,1713441424605,-151.0,0.00021998,2]
[322869707,1713441424634,-151.0,0.00021998,2]
[322869708,1713441424661,-151.0,0.00021998,2]
[322869709,1713441424688,-56.89733112,0.00021998,2]
[322869710,1713441456584,-787.27819788,0.00021998,2]
[322869711,1713441456612,-844.175529,0.00021998,2]
[322869712,1713441456640,-844.175529,0.00021998,2]
[322869713,1713441456668,-844.175529,0.00021998,2]
[322869714,1713441456696,-844.175529,0.00021998,2]
[322869715,1713441456723,-844.175529,0.00021998,2]
[322869716,1713441456751,-158.89146937,0.00022,2]
[322869717,1713441456778,-1500.0,0.00023,2]
[322869718,1713441456804,-151.0,0.00023,2]
[322869719,1713441456832,-151.0,0.00023,2]
[322869720,1713441456858,-151.0,0.00023,2]
[322869721,1713441456884,-844.175529,0.00023,2]
[322869722,1713441456909,-844.175529,0.00023,2]
[322869723,1713441456935,-243.31260589,0.00023499,2]
[322869724,1713441456963,-203.3359591,0.000235,2]
[322869725,1713441457144,-203.3359591,0.000235,2]
[322869726,1713441457178,-153.0,0.000235,2]
[322869727,1713441457204,-153.0,0.000235,2]
[322869728,1713441457232,-153.0,0.000235,2]
[322869729,1713441457259,-153.0,0.000235,2]
[322869730,1713441457285,-153.0,0.000235,2]
[322869731,1713441457313,-352.0960175,0.000235,2]
[322869732,1713441457340,-151.0,0.000235,2]
[322869733,1713441457368,-151.0,0.000235,2]
[322869734,1713441457396,-844.175529,0.000235,2]
[322869735,1713441457423,-844.175529,0.000235,2]
[322869736,1713441457450,-420.0,0.00023901,2]
[322869737,1713441457476,-153.0,0.00024,2]
[322869738,1713441457503,-420.0,0.00024195,2]
[322869739,1713441457529,-2000.0,0.00024556,2]
[322869740,1713441457555,-153.692384,0.00024556,2]
[322869741,1713441457582,-151.0,0.00024556,2]
[322869742,1713441457609,-844.175529,0.00024556,2]
[322869743,1713441457636,-844.175529,0.00024556,2]
[322869744,1713441457662,-533.22411732,0.00024558,2]
[322869745,1713441481073,-177.0,0.000246,2]
[322869746,1713441481101,-491.0,0.000246,2]
[322869747,1713441481128,-300.0,0.00024655,2]
[322869748,1713441481154,-500.0,0.00024656,2]
[322869749,1713441481181,-500.0,0.00024656,2]
[322869750,1713441481207,-174.13664552,0.00024656,2]
[322869751,1713441481233,-500.0,0.00024656,2]
[322869752,1713441481259,-500.0,0.00024656,2]
[322869753,1713441481285,-500.0,0.00024656,2]
[322869754,1713441481312,-500.0,0.00024656,2]
[322869755,1713441481337,-500.0,0.00024656,2]
[322869756,1713441481365,-500.0,0.00024656,2]
[322869757,1713441481395,-500.0,0.00024656,2]
[322869758,1713441481421,-500.0,0.00024656,2]
[322869759,1713441481447,-500.0,0.00024656,2]
[322869760,1713441481474,-482.08316671,0.00024656,2]
[322869761,1713441481499,-530.25788659,0.00024656,2]
[322869762,1713441481527,-341.90315676,0.00024656,2]
[322869763,1713441481553,-500.0,0.00024656,2]
[322869764,1713441481579,-500.0,0.00024656,2]
[322869765,1713441481605,-151.0,0.00024656,2]
[322869766,1713441481631,-844.175529,0.00024656,2]
[322869767,1713441481657,-844.175529,0.00024656,2]
[322869768,1713441481683,-844.175529,0.00024656,2]
[322869769,1713441481709,-844.175529,0.00024656,2]
[322869770,1713441481737,-844.175529,0.00024656,2]
[322869771,1713441481766,-844.175529,0.00024656,2]
[322869772,1713441481792,-200.0,0.00024658,15]
[322869773,1713441481820,-15520.5729421,0.00024658,10]
[322869774,1713441481954,-844.175529,0.00024658,2]
[322869775,1713441481982,-844.175529,0.00024658,2]
[322869776,1713441482011,-587.0,0.000247,2]
[322869777,1713441482038,-826.53074256,0.00024731,2]
[322869778,1713441482064,-500.0,0.0002488,2]
[322869779,1713441482091,-200.01883846,0.000249,5]
[322869780,1713441482118,-798.31650662,0.000249,2]
[322869781,1713441506911,-150.06063917,0.000235,2]
[322869782,1713441506937,-3201.68349338,0.000249,2]
[322869783,1713441506963,-417.0,0.00024994,2]
[322869784,1713441506991,-300.0,0.00024999,2]
[322869785,1713441507017,-300.77062141,0.00025,2]
[322869786,1713441507043,-1000.0,0.00025,2]
[322869787,1713441507071,-675.4654,0.00025,2]
[322869788,1713441507096,-150.0,0.00025,2]
[322869789,1713441507122,-533.22411729,0.00025318,2]
[322869790,1713441507149,-502.02258726,0.00025999,2]
[322869791,1713441507175,-150.0,0.00026,2]
[322869792,1713441507201,-153.0,0.00026055,2]
[322869793,1713441507333,-153.0,0.00026055,2]
[322869794,1713441507360,-153.0,0.00026055,2]
[322869795,1713441507390,-153.0,0.00026055,2]
[322869796,1713441507417,-153.0,0.00026055,2]
[322869797,1713441507444,-153.0,0.00026055,2]
[322869798,1713441507471,-533.22411729,0.00026079,2]
[322869799,1713441507497,-155.36110397,0.00026296,2]
[322869800,1713441507523,-194.29803371,0.00026316,2]
[322869801,1713441507549,-1170.75481177,0.00026326,2]
[322869802,1713441507575,-680.24401909,0.00026336,2]
[322869803,1713441507601,-437.9435178,0.0002634,2]
[322869804,1713441507630,-1582.54793001,0.00026351,2]
[322869805,1713441507657,-309.62845823,0.0002636,2]
[322869806,1713441507685,-474.3197252,0.00026371,2]
[322869807,1713441507712,-153.0,0.0002674,2]
[322869808,1713441507738,-306.0,0.00026795,2]
[322869809,1713441507765,-150.9494114,0.00026799,2]